fUST/lending_fUST_20240214
["ID","MTS","AMOUNT","RATE_DAILY","PERIOD"]
[313975497,1707900646353,-467.36512574,0.00036712,14]
[313975498,1707900646362,-500.0,0.00036712,14]
[313975499,1707900646371,-500.0,0.00036712,14]
[313975500,1707900646380,-506.06269823,0.00036712,14]
[313975501,1707900646389,-365.55515596,0.00036712,14]
[313975502,1707900646398,-500.0,0.00036712,14]
[313975503,1707900646408,-500.0,0.00036712,14]
[313975504,1707900646417,-500.0,0.00036712,14]
[313975505,1707900646427,-500.0,0.00036712,14]
[313975506,1707900646436,-151.0,0.00036712,2]
[313975507,1707900646445,-151.0,0.00036712,2]
[313975508,1707900646454,-500.0,0.00036712,14]
[313975509,1707900646463,-513.34469106,0.00036712,14]
[313975510,1707900646472,-500.0,0.00036712,14]
[313975511,1707900646481,-503.05896067,0.00036712,2]
[313975512,1707900646491,-591.37054299,0.00036712,14]
[313975513,1707900646504,-500.0,0.00036712,14]
[313975514,1707900646513,-500.0,0.00036712,14]
[313975515,1707900646522,-500.0,0.00036712,14]
[313975516,1707900646533,-500.0,0.00036712,14]
[313975517,1707900646542,-500.0,0.00036712,14]
[313975518,1707900646551,-500.0,0.00036712,14]
[313975519,1707900646560,-500.0,0.00036712,14]
[313975520,1707900646570,-500.0,0.00036712,14]
[313975521,1707900646581,-500.0,0.00036712,14]
[313975522,1707900646591,-500.0,0.00036712,14]
[313975523,1707900646601,-500.0,0.00036712,14]
[313975524,1707900646610,-500.0,0.00036712,14]
[313975525,1707900646620,-500.0,0.00036712,14]
[313975526,1707900646630,-500.0,0.00036712,14]
[313975527,1707900646639,-433.0,0.00036712,14]
[313975528,1707900646649,-500.0,0.00036712,14]
[313975529,1707900646658,-500.0,0.00036712,14]
[313975530,1707900646667,-219.71394389,0.00036712,14]
[313975531,1707900646676,-500.0,0.00036712,3]
[313975532,1707900646685,-500.0,0.00036712,14]
[313975533,1707900646694,-500.0,0.00036712,14]
[313975534,1707900646704,-500.0,0.00036712,14]
[313975535,1707900646713,-381.9176512,0.00036712,14]
[313975536,1707900646722,-603.24422199,0.00036712,14]
[313975537,1707900646731,-500.0,0.00036712,14]
[313975538,1707900646740,-500.0,0.00036712,14]
[313975539,1707900646749,-500.0,0.00036712,14]
[313975540,1707900646759,-500.0,0.00036712,14]
[313975541,1707900646769,-500.0,0.00036712,14]
[313975542,1707900646778,-500.0,0.00036712,14]
[313975543,1707900646787,-500.0,0.00036712,14]
[313975544,1707900646797,-620.97644391,0.00036712,14]
[313975545,1707900646806,-462.12796096,0.00036712,14]
[313975546,1707900646815,-500.0,0.00036712,14]
[313975547,1707900646824,-500.0,0.00036712,14]
[313975548,1707900646834,-500.0,0.00036712,14]
[313975549,1707900646843,-500.0,0.00036712,14]
[313975550,1707900646853,-500.0,0.00036712,14]
[313975551,1707900646862,-500.0,0.00036712,14]
[313975552,1707900646872,-500.0,0.00036712,14]
[313975553,1707900646881,-500.0,0.00036712,14]
[313975554,1707900646890,-500.0,0.00036712,14]
[313975555,1707900646899,-500.0,0.00036712,14]
[313975556,1707900646908,-500.0,0.00036712,14]
[313975557,1707900646918,-500.0,0.00036712,14]
[313975558,1707900646929,-500.0,0.00036712,14]
[313975559,1707900646937,-351.04616072,0.00036712,14]
[313975560,1707900646946,-505.58413704,0.00036712,14]
[313975561,1707900646956,-500.0,0.00036712,14]
[313975562,1707900646964,-500.0,0.00036712,14]
[313975563,1707900646974,-500.0,0.00036712,14]
[313975564,1707900646982,-500.0,0.00036712,14]
[313975565,1707900646991,-500.0,0.00036712,14]
[313975566,1707900647001,-500.0,0.00036712,14]
[313975567,1707900647010,-500.0,0.00036712,14]
[313975568,1707900647019,-500.0,0.00036712,14]
[313975569,1707900647029,-500.0,0.00036712,2]
[313975570,1707900647038,-500.0,0.00036712,14]
[313975571,1707900647047,-500.0,0.00036712,14]
[313975572,1707900647056,-500.0,0.00036712,14]
[313975573,1707900647065,-500.0,0.00036712,2]
[313975574,1707900647074,-500.0,0.00036712,14]
[313975575,1707900647161,-443.19,0.00036712,14]
[313975576,1707900647171,-500.0,0.00036712,2]
[313975577,1707900647180,-500.0,0.00036712,14]
[313975578,1707900647189,-166.61,0.00036712,2]
[313975579,1707900647198,-500.0,0.00036712,14]
[313975580,1707900647207,-500.0,0.00036712,14]
[313975581,1707900647217,-500.0,0.00036712,14]
[313975582,1707900647226,-500.0,0.00036712,14]
[313975583,1707900647236,-500.0,0.00036712,14]
[313975584,1707900647248,-500.0,0.00036712,14]
[313975585,1707900647257,-500.0,0.00036712,14]
[313975586,1707900647266,-500.0,0.00036712,14]
[313975587,1707900647275,-211.95,0.00036712,14]
[313975588,1707900647284,-500.0,0.00036712,14]
[313975589,1707900647293,-500.0,0.00036712,14]
[313975590,1707900647302,-500.0,0.00036712,14]
[313975591,1707900647312,-500.0,0.00036712,14]
[313975592,1707900647322,-500.0,0.00036712,14]
[313975593,1707900647331,-500.0,0.00036712,14]
[313975594,1707900647341,-500.0,0.00036712,14]
[313975595,1707900647350,-500.0,0.00036712,14]
[313975596,1707900647359,-500.0,0.00036712,14]
[313975597,1707900647369,-289.2,0.00036712,14]
[313975598,1707900647379,-500.0,0.00036712,14]
[313975599,1707900647390,-500.0,0.00036712,14]
[313975600,1707900647399,-560.33,0.00036712,14]
[313975601,1707900647408,-500.0,0.00036712,14]
[313975602,1707900647419,-500.0,0.00036712,14]
[313975603,1707900647430,-500.0,0.00036712,14]
[313975604,1707900647440,-500.0,0.00036712,14]
[313975605,1707900647450,-500.0,0.00036712,14]
[313975606,1707900647459,-500.0,0.00036712,14]
[313975607,1707900647470,-500.0,0.00036712,14]
[313975608,1707900647480,-500.0,0.00036712,14]
[313975609,1707900647494,-500.0,0.00036712,14]
[313975610,1707900647504,-500.0,0.00036712,14]
[313975611,1707900647513,-500.0,0.00036712,14]
[313975612,1707900647523,-500.0,0.00036712,14]
[313975613,1707900647534,-221.19583343,0.00036712,14]
[313975614,1707900647543,-338.0,0.00036712,14]
[313975615,1707900647553,-500.0,0.00036712,14]
[313975616,1707900647562,-390.77891299,0.00036712,14]
[313975617,1707900647575,-151.0,0.00036712,2]
[313975618,1707900647586,-151.0,0.00036712,2]
[313975619,1707900647595,-151.0,0.00036712,2]
[313975620,1707900647604,-500.0,0.00036712,2]
[313975621,1707900647613,-500.0,0.00036712,14]
[313975622,1707900647622,-500.0,0.00036712,2]
[313975623,1707900647631,-500.0,0.00036712,14]
[313975624,1707900647640,-593.52,0.00036712,2]
[313975625,1707900647650,-500.0,0.00036712,14]
[313975626,1707900647659,-500.0,0.00036712,14]
[313975627,1707900647668,-500.0,0.00036712,14]
[313975628,1707900647678,-346.15,0.00036712,14]
[313975629,1707900647687,-500.0,0.00036712,14]
[313975630,1707900647697,-500.0,0.00036712,14]
[313975631,1707900647706,-500.0,0.00036712,14]
[313975632,1707900647716,-500.0,0.00036712,14]
[313975633,1707900647726,-2109.05,0.00036712,14]
[313975634,1707900647735,-2109.05,0.00036712,14]
[313975635,1707900647744,-500.0,0.00036712,14]
[313975636,1707900647754,-2109.05,0.00036712,14]
[313975637,1707900647764,-500.0,0.00036712,14]
[313975638,1707900647773,-2109.05,0.00036712,14]
[313975639,1707900647783,-500.0,0.00036712,14]
[313975640,1707900647792,-2109.05,0.00036712,14]
[313975641,1707900647801,-2109.05,0.00036712,14]
[313975642,1707900647811,-2109.05,0.00036712,14]
[313975643,1707900647820,-2109.05,0.00036712,14]
[313975644,1707900647830,-2109.05,0.00036712,14]
[313975645,1707900647839,-2109.05,0.00036712,14]
[313975646,1707900647849,-500.0,0.00036712,14]
[313975647,1707900647858,-2109.05,0.00036712,14]
[313975648,1707900647867,-500.0,0.00036712,14]
[313975649,1707900647876,-2109.05,0.00036712,14]
[313975650,1707900647885,-500.0,0.00036712,14]
[313975651,1707900647895,-2109.05,0.00036712,14]
[313975652,1707900647904,-500.0,0.00036712,14]
[313975653,1707900647913,-2109.05,0.00036712,14]
[313975654,1707900647922,-500.0,0.00036712,14]
[313975655,1707900647933,-2109.05,0.00036712,14]
[313975656,1707900647943,-500.0,0.00036712,14]
[313975657,1707900647952,-2109.05,0.00036712,14]
[313975658,1707900647961,-500.0,0.00036712,14]
[313975659,1707900647971,-500.0,0.00036712,14]
[313975660,1707900647980,-2109.05,0.00036712,14]
[313975661,1707900647989,-178.35,0.00036712,14]
[313975662,1707900647998,-2109.05,0.00036712,14]
[313975663,1707900648007,-2109.05,0.00036712,14]
[313975664,1707900648016,-2109.05,0.00036712,14]
[313975665,1707900648026,-2109.05,0.00036712,14]
[313975666,1707900648035,-2109.05,0.00036712,14]
[313975667,1707900648045,-2109.05,0.00036712,14]
[313975668,1707900648054,-2109.24,0.00036712,14]
[313975669,1707900648063,-500.0,0.00036712,14]
[313975670,1707900648072,-500.0,0.00036712,14]
[313975671,1707900648082,-500.0,0.00036712,14]
[313975672,1707900648091,-500.0,0.00036712,14]
[313975673,1707900648101,-500.0,0.00036712,14]
[313975674,1707900648110,-500.0,0.00036712,14]
[313975675,1707900648119,-500.0,0.00036712,14]
[313975676,1707900648128,-500.0,0.00036712,14]
[313975677,1707900648137,-500.0,0.00036712,14]
[313975678,1707900648146,-500.0,0.00036712,14]
[313975679,1707900648155,-500.0,0.00036712,14]
[313975680,1707900648165,-500.0,0.00036712,14]
[313975681,1707900648174,-377.55,0.00036712,14]
[313975682,1707900648184,-500.0,0.00036712,14]
[313975683,1707900648193,-500.0,0.00036712,14]
[313975684,1707900648202,-500.0,0.00036712,14]
[313975685,1707900648211,-649.03874586,0.00036712,14]
[313975686,1707900648220,-500.0,0.00036712,14]
[313975687,1707900648229,-1423.24,0.00036712,14]
[313975688,1707900648238,-500.0,0.00036712,14]
[313975689,1707900648247,-1423.24,0.00036712,14]
[313975690,1707900648257,-1423.24,0.00036712,14]
[313975691,1707900648266,-1423.24,0.00036712,14]
[313975692,1707900648275,-1423.24,0.00036712,14]
[313975693,1707900648284,-1423.24,0.00036712,14]
[313975694,1707900648293,-1423.24,0.00036712,14]
[313975695,1707900648303,-1423.24,0.00036712,14]
[313975696,1707900648312,-1423.24,0.00036712,14]
[313975697,1707900648322,-1423.24,0.00036712,14]
[313975698,1707900648331,-1423.24,0.00036712,14]
[313975699,1707900648340,-1423.24,0.00036712,14]
[313975700,1707900648349,-1423.24,0.00036712,14]
[313975701,1707900648358,-1423.24,0.00036712,14]
[313975702,1707900648367,-1423.24,0.00036712,14]
[313975703,1707900648376,-1423.24,0.00036712,14]
[313975704,1707900648385,-1423.24,0.00036712,14]
[313975705,1707900648394,-1423.24,0.00036712,14]
[313975706,1707900648403,-1423.24,0.00036712,14]
[313975707,1707900648412,-1423.24,0.00036712,14]
[313975708,1707900648421,-1423.24,0.00036712,14]
[313975709,1707900648430,-1423.24,0.00036712,14]
[313975710,1707900648439,-1423.24,0.00036712,14]
[313975711,1707900648448,-1423.47,0.00036712,14]
[313975712,1707900648457,-500.0,0.00036712,14]
[313975713,1707900648467,-500.0,0.00036712,14]
[313975714,1707900648476,-500.0,0.00036712,14]
[313975715,1707900648485,-500.0,0.00036712,14]
[313975716,1707900648495,-151.0,0.00036712,2]
[313975717,1707900648507,-151.0,0.00036712,2]
[313975718,1707900648516,-151.0,0.00036712,2]
[313975719,1707900648526,-252.716461,0.00036712,2]
[313975720,1707900648535,-500.0,0.00036712,14]
[313975721,1707900648545,-500.0,0.00036712,14]
[313975722,1707900648554,-500.0,0.00036712,14]
[313975723,1707900648563,-500.0,0.00036712,14]
[313975724,1707900648575,-500.0,0.00036712,14]
[313975725,1707900648586,-500.0,0.00036712,14]
[313975726,1707900648596,-500.0,0.00036712,14]
[313975727,1707900648605,-500.0,0.00036712,14]
[313975728,1707900648615,-500.0,0.00036712,14]
[313975729,1707900648624,-500.0,0.00036712,14]
[313975730,1707900648634,-500.0,0.00036712,14]
[313975731,1707900648644,-404.51,0.00036712,14]
[313975732,1707900648653,-3377.41,0.00036712,14]
[313975733,1707900648662,-3377.41,0.00036712,14]
[313975734,1707900648673,-500.0,0.00036712,14]
[313975735,1707900648682,-3377.41,0.00036712,14]
[313975736,1707900648691,-528.45511969,0.00036712,14]
[313975737,1707900648703,-3377.41,0.00036712,14]
[313975738,1707900648712,-3377.41,0.00036712,14]
[313975739,1707900648721,-3377.41,0.00036712,14]
[313975740,1707900648730,-1524.61,0.00036712,14]
[313975741,1707900648739,-3377.41,0.00036712,14]
[313975742,1707900648749,-1524.61,0.00036712,14]
[313975743,1707900648758,-3377.41,0.00036712,14]
[313975744,1707900648767,-1524.61,0.00036712,14]
[313975745,1707900648776,-3377.41,0.00036712,14]
[313975746,1707900648786,-1524.61,0.00036712,14]
[313975747,1707900648795,-3377.41,0.00036712,14]
[313975748,1707900648804,-1524.61,0.00036712,14]
[313975749,1707900648813,-3377.41,0.00036712,14]
[313975750,1707900648822,-1524.61,0.00036712,14]
[313975751,1707900648831,-3377.41,0.00036712,14]
[313975752,1707900648840,-500.0,0.00036712,14]
[313975753,1707900648850,-1524.61,0.00036712,14]
[313975754,1707900648859,-3377.41,0.00036712,14]
[313975755,1707900648867,-1524.61,0.00036712,14]
[313975756,1707900648877,-500.0,0.00036712,14]
[313975757,1707900648886,-3377.41,0.00036712,14]
[313975758,1707900648895,-1524.61,0.00036712,14]
[313975759,1707900648904,-500.0,0.00036712,14]
[313975760,1707900648913,-3377.41,0.00036712,14]
[313975761,1707900648922,-1524.61,0.00036712,14]
[313975762,1707900648932,-3377.41,0.00036712,14]
[313975763,1707900648941,-1524.61,0.00036712,14]
[313975764,1707900648950,-3377.41,0.00036712,14]
[313975765,1707900648959,-1524.61,0.00036712,14]
[313975766,1707900648968,-1524.61,0.00036712,14]
[313975767,1707900648977,-3377.41,0.00036712,14]
[313975768,1707900648986,-1524.61,0.00036712,14]
[313975769,1707900648995,-1524.61,0.00036712,14]
[313975770,1707900649004,-1524.61,0.00036712,14]
[313975771,1707900649013,-1524.61,0.00036712,14]
[313975772,1707900649022,-3377.41,0.00036712,14]
[313975773,1707900649031,-1524.61,0.00036712,14]
[313975774,1707900649108,-1524.61,0.00036712,14]
[313975775,1707900649117,-500.0,0.00036712,14]
[313975776,1707900649126,-1524.61,0.00036712,14]
[313975777,1707900649135,-500.0,0.00036712,14]
[313975778,1707900649144,-1524.61,0.00036712,14]
[313975779,1707900649153,-162.29972449,0.00036712,14]
[313975780,1707900649179,-337.70027551,0.00036712,14]
[313975781,1707900649189,-741.37697171,0.00036712,14]
[313975813,1707901487809,288.7951024,0.00018038,2]
[313975814,1707901491888,1747.64375769,0.00018037,2]
[313975816,1707901544672,1360.35861744,0.00018037,5]
[313975817,1707901544756,97535.58812077,0.00018037,2]
[313975820,1707901558678,1469.15149365,0.00018037,5]
[313975827,1707901627039,151.3789105,0.00017408,2]
[313975828,1707901652101,-161.69234579,0.00018369,2]
[313975829,1707901652122,-51.10206895,0.00018369,2]
[313975832,1707901687896,9036.2774336,0.00017685,2]
[313975839,1707901752106,-154.87609912,0.00018359,2]
[313975840,1707901752128,-652.21228434,0.00018359,2]
[313975841,1707901752149,-261.34804717,0.0001836,2]
[313975842,1707901752170,-1298.72656722,0.0001836,2]
[313975843,1707901752189,-718.86881418,0.00018361,2]
[313975844,1707901752210,-258.12096947,0.00018362,2]
[313975845,1707901752230,-5282.96742262,0.00018362,2]
[313975846,1707901752250,-81.5529378,0.00018363,2]
[313975847,1707901774730,8708.66779459,0.00017685,2]
[313975855,1707901806425,158.1694459,0.00016893,2]
[313975856,1707901810612,24900.0,0.00017506,2]
[313975887,1707901834960,-981.78336879,0.00018351,2]
[313975888,1707901834971,-500.0,0.00018352,2]
[313975889,1707901834982,-324.10699076,0.00018352,2]
[313975890,1707901834991,-148.80911561,0.00018352,2]
[313975891,1707901835004,-680.57379999,0.00018352,2]
[313975892,1707901835016,-167.4849384,0.00018352,2]
[313975894,1707901835027,-87.62242434,0.00018353,2]
[313976170,1707901843065,-13509.79116873,0.00018352,2]
[313976173,1707901843079,-7444.69565998,0.00018352,2]
[313976176,1707901843089,-503.09643725,0.00018353,2]
[313976178,1707901843099,-154.90705577,0.00018353,2]
[313976181,1707901843109,-1588.46625264,0.00018353,2]
[313976184,1707901843118,-360.84276657,0.00018354,2]
[313976187,1707901843127,-262.16297165,0.00018355,2]
[313976190,1707901843137,-6116.12311429,0.00018368,2]
[313976193,1707901843147,-990.24867011,0.00018369,2]
[313976196,1707901843156,-154.87609912,0.00018379,2]
[313976199,1707901843167,-154.87609912,0.0001838,2]
[313976202,1707901843179,-948.99866299,0.00018381,2]
[313976207,1707901843195,-3519.14128859,0.00018381,2]
[313976210,1707901843205,-267.314486,0.0001839,2]
[313976213,1707901843215,-385.34638323,0.00018447,2]
[313976218,1707901843226,-5978.91557047,0.00018447,2]
[313976222,1707901843239,-8239.53357952,0.00018447,2]
[313976226,1707901843252,-895.10933268,0.00018447,2]
[313976229,1707901843263,-2057.6317716,0.000187,2]
[313976232,1707901843274,-167.141282,0.00019178,2]
[313976235,1707901843285,-166.666666,0.00019178,2]
[313976239,1707901843296,-166.666666,0.00019627,2]
[313976242,1707901843306,-1203.17701718,0.0002,2]
[313976245,1707901843316,-166.666666,0.00020076,2]
[313976248,1707901843326,-200.0,0.00020221,2]
[313976251,1707901843336,-166.666666,0.00020524,2]
[313976254,1707901843346,-166.666666,0.00020973,2]
[313976274,1707901843470,-166.666666,0.00021422,2]
[313976276,1707901843483,-248.13766486,0.00022,4]
[313976278,1707901843493,-2039.34240658,0.00022,2]
[313976279,1707901843505,-280.0,0.00022243,7]
[313976281,1707901843514,-391.0,0.00024468,7]
[313976283,1707901843524,-360.16270002,0.00025338,2]
[313976285,1707901843533,-49.00580577,0.00025338,2]
[313976287,1707901843549,-4229.79999614,0.00025338,2]
[313976288,1707901843559,-1866.9153448,0.00026913,2]
[313976290,1707901843568,-200.0,0.00026914,15]
[313976291,1707901843577,-348.0,0.00026914,15]
[313976292,1707901843587,-267.314486,0.00027585,2]
[313976293,1707901843597,-3063.50417358,0.00028797,2]
[313976294,1707901843606,-154.82968734,0.00028798,4]
[313976295,1707901843616,-1114.25679546,0.00028798,2]
[313976296,1707901843625,-200.0,0.00029606,15]
[313976297,1707901843635,-265.0,0.00029606,15]
[313976298,1707901843644,-157.04852755,0.00029774,2]
[313976299,1707901843653,-2360.45,0.00029854,3]
[313976300,1707901843663,-3515.37326151,0.00029874,2]
[313976301,1707901843675,-3723.47095759,0.00029874,2]
[313976302,1707901843685,-3684.0113788,0.00029874,2]
[313976303,1707901843694,-4944.77111792,0.000299,2]
[313976304,1707901843703,-1364.46357245,0.00029927,2]
[313976305,1707901843713,-154.90705577,0.00030709,4]
[313976306,1707901843723,-346.80360582,0.00030709,4]
[313976307,1707901843732,-876.29289643,0.0003071,4]
[313976308,1707901843742,-157.04852754,0.00030711,2]
[313976309,1707901843752,-7098.03684421,0.00030999,2]
[313976311,1707901843761,-685.66275668,0.00031,3]
[313976313,1707901843771,-777.0,0.000312,2]
[313976314,1707901843780,-157.04852754,0.00031647,2]
[313976316,1707901843790,-500.0,0.00031899,7]
[313976318,1707901843800,-324.89663389,0.00031899,7]
[313976320,1707901843809,-500.0,0.00031899,7]
[313976323,1707901843819,-195.72037708,0.00031899,7]
[313976324,1707901843828,-500.0,0.00031899,7]
[313976326,1707901843841,-500.0,0.00031899,7]
[313976328,1707901843851,-561.69717588,0.00031899,7]
[313976331,1707901843860,-385.81631662,0.00031899,7]
[313976332,1707901843869,-500.0,0.00031899,7]
[313976334,1707901843880,-500.0,0.00031899,7]
[313976337,1707901843890,-500.0,0.00031899,7]
[313976339,1707901843899,-500.0,0.00031899,7]
[313976340,1707901843908,-500.0,0.00031899,7]
[313976342,1707901843918,-500.0,0.00031899,7]
[313976344,1707901843931,-500.0,0.00031899,7]
[313976346,1707901843940,-259.56549557,0.00031899,7]
[313976348,1707901843949,-500.0,0.00031899,7]
[313976350,1707901843958,-500.0,0.00031899,7]
[313976352,1707901843967,-500.0,0.00031899,7]
[313976354,1707901843976,-500.0,0.00031899,7]
[313976356,1707901843986,-500.0,0.00031899,7]
[313976358,1707901843994,-500.0,0.00031899,7]
[313976360,1707901844004,-500.0,0.00031899,7]
[313976362,1707901844014,-500.0,0.00031899,7]
[313976363,1707901844023,-500.0,0.00031899,7]
[313976365,1707901844035,-500.0,0.00031899,7]
[313976367,1707901844044,-500.0,0.00031899,7]
[313976368,1707901844054,-500.0,0.00031899,7]
[313976370,1707901844063,-500.0,0.00031899,7]
[313976372,1707901844072,-500.0,0.00031899,7]
[313976373,1707901844081,-500.0,0.00031899,7]
[313976374,1707901844091,-500.0,0.00031899,7]
[313976375,1707901844100,-500.0,0.00031899,7]
[313976376,1707901844109,-500.0,0.00031899,7]
[313976377,1707901844118,-500.0,0.00031899,7]
[313976378,1707901844127,-500.0,0.00031899,7]
[313976379,1707901844136,-500.0,0.00031899,7]
[313976380,1707901844145,-409.79427255,0.00031899,7]
[313976381,1707901844154,-500.0,0.00031899,7]
[313976382,1707901844163,-500.0,0.00031899,7]
[313976383,1707901844175,-500.0,0.00031899,7]
[313976384,1707901844185,-500.0,0.00031899,7]
[313976385,1707901844195,-500.0,0.00031899,7]
[313976386,1707901844204,-500.0,0.00031899,7]
[313976387,1707901844214,-380.14610798,0.00031899,7]
[313976388,1707901844224,-500.0,0.00031899,7]
[313976389,1707901844233,-500.0,0.00031899,7]
[313976390,1707901844243,-500.0,0.00031899,7]
[313976391,1707901844252,-301.10108273,0.00031899,7]
[313976392,1707901844261,-500.0,0.00031899,7]
[313976393,1707901844270,-500.0,0.00031899,7]
[313976395,1707901844279,-500.0,0.00031899,7]
[313976397,1707901844289,-500.0,0.00031899,7]
[313976399,1707901844298,-500.0,0.00031899,7]
[313976401,1707901844307,-500.0,0.00031899,7]
[313976403,1707901844316,-500.0,0.00031899,7]
[313976404,1707901844325,-500.0,0.00031899,7]
[313976405,1707901844335,-500.0,0.00031899,7]
[313976407,1707901844344,-500.0,0.00031899,7]
[313976409,1707901844352,-64310.26726579,0.000319,2]
[313976410,1707901844362,-250.0,0.00031997,2]
[313976412,1707901844371,-166.74522198,0.00031998,7]
[313976414,1707901844380,-155.04959202,0.00031998,4]
[313976416,1707901844389,-155.54015347,0.00031998,4]
[313976418,1707901844399,-10235.2887718,0.00031998,2]
[313976420,1707901844408,-2948.63612318,0.00031998,4]
[313976422,1707901844417,-537.71032653,0.00031998,4]
[313976424,1707901844429,-524.21369774,0.00031998,4]
[313976426,1707901844438,-37099.20039005,0.00031998,4]
[313976428,1707901844447,-2721.57664766,0.00031998,5]
[313976429,1707901844459,-294.87723359,0.00031998,4]
[313976431,1707901844472,-177.7354849,0.00031998,4]
[313976433,1707901844484,-207.36029562,0.00031998,4]
[313976435,1707901844498,-282.96837844,0.00031998,7]
[313976436,1707901844510,-163.83847392,0.00031998,4]
[313976437,1707901844523,-156.27894218,0.00031998,60]
[313976438,1707901844533,-154.88270914,0.00031998,4]
[313976439,1707901844544,-1584.33737769,0.00031998,2]
[313976440,1707901844557,-750.34774435,0.00031998,4]
[313976441,1707901844568,-692.15230698,0.00031998,4]
[313976443,1707901844580,-212.83740127,0.00031998,4]
[313976445,1707901844594,-225.13526567,0.00031998,4]
[313976447,1707901844607,-154.91479345,0.00031998,2]
[313976449,1707901844619,-1179.32359114,0.00031998,4]
[313976450,1707901844631,-10007.32530336,0.00031998,2]
[313976451,1707901844642,-707.94405424,0.00031998,4]
[313976453,1707901844654,-324.33055598,0.00031998,4]
[313976455,1707901844665,-209.73247519,0.00031998,4]
[313976457,1707901844679,-1963.02059646,0.00031998,4]
[313976459,1707901844689,-1948.0276469,0.00031998,4]
[313976461,1707901844701,-821.00768788,0.00031998,4]
[313976463,1707901844713,-2784.16444261,0.00031998,4]
[313976465,1707901844724,-1268.07859014,0.00031998,4]
[313976467,1707901844735,-178.8087918,0.00031998,4]
[313976468,1707901844746,-251.12417658,0.00031998,3]
[313976469,1707901844757,-154.9042973,0.00031998,4]
[313976471,1707901844768,-336.90288223,0.00031998,4]
[313976473,1707901844780,-217.88015111,0.00031998,4]
[313976475,1707901844792,-309.64391646,0.00031998,4]
[313976477,1707901844804,-296.09763721,0.00031998,4]
[313976479,1707901844816,-260.81307837,0.00031998,4]
[313976480,1707901844828,-1704.46669207,0.00031998,4]
[313976482,1707901844842,-474.43041835,0.00031998,4]
[313976484,1707901844854,-907.30024907,0.00031999,4]
[313976486,1707901844865,-326.8111299,0.00031999,4]
[313976487,1707901844879,-12849.20118437,0.00031999,4]
[313976488,1707901844892,-67774.02912575,0.00032,10]
[313976489,1707901844903,-102505.18652236,0.00032,15]
[313976490,1707901844917,-517.90171581,0.00032484,2]
[313976491,1707901844931,-157.04852754,0.00032584,2]
[313976492,1707901844942,-180.59139188,0.00032682,2]
[313976493,1707901844952,-300.0,0.00033104,2]
[313976494,1707901844963,-517.90171578,0.00033245,2]
[313976495,1707901844973,-517.90171578,0.00034006,2]
[313976496,1707901844985,-300.0,0.0003421,2]
[313976497,1707901844998,-222.22307031,0.00034448,4]
[313976498,1707901845011,-221.64136474,0.00034612,2]
[313976499,1707901845022,-517.90171578,0.00034768,2]
[313976500,1707901845033,-1533.28604909,0.00035,4]
[313976501,1707901845045,-42401.55120339,0.00035,15]
[313976502,1707901845057,-592.9404348,0.00035,2]
[313976503,1707901845070,-287.65,0.00035,4]
[313976504,1707901845081,-5000.0,0.00035236,7]
[313976505,1707901845095,-300.0,0.00035315,3]
[313976506,1707901845105,-517.90171578,0.00035529,2]
[313976507,1707901845115,-500.0,0.00035616,2]
[313976508,1707901845125,-500.0,0.00035616,14]
[313976509,1707901845135,-500.0,0.00035616,14]
[313976510,1707901845145,-500.0,0.00035616,14]